bitfinex/quotes_SOLUSD_20250204
["timestamp","ask_amount","ask_price","bid_price","bid_amount"]
[1738712147185,1.09759,205.74,205.66,20.39179646]
[1738712147363,20.39179646,205.73,205.64,20.39179646]
[1738712147559,0.12549,205.7,205.64,20.39179646]
[1738712148273,20.39179646,205.73,205.64,20.39179646]
[1738712148480,0.9721,205.74,205.68,20.39179646]
[1738712148792,1.1059738,205.76,205.72,20.39179646]
[1738712149583,0.1339738,205.76,205.72,20.39179646]
[1738712150154,1.1059738,205.76,205.72,20.39179646]
[1738712150392,0.1339738,205.76,205.72,20.39179646]
[1738712150576,0.09290007,205.73,205.72,20.39179646]
[1738712151489,0.09290007,205.73,205.7,20.39179646]
[1738712153099,1.06500007,205.73,205.7,20.39179646]
[1738712153300,1.06500007,205.73,205.68,20.39179646]
[1738712153593,1.06500007,205.73,205.66,20.39179646]
[1738712153772,1.06500007,205.73,205.64,157.79179646]
[1738712155064,0.09290007,205.73,205.68,20.39179646]
[1738712155270,0.09290007,205.73,205.7,20.39179646]
[1738712155995,1.06500007,205.73,205.68,20.39179646]
[1738712156197,1.06500007,205.73,205.66,20.39179646]
[1738712156578,21.45679653,205.73,205.66,20.39179646]
[1738712156987,20.39179646,205.69,205.62,20.39179646]
[1738712157197,20.39179646,205.67,205.6,24.77179646]
[1738712157391,20.39179646,205.65,205.61,30.0]
[1738712157694,20.39179646,205.63,205.56,157.79179646]
[1738712157873,20.39179646,205.65,205.56,157.79179646]
[1738712158271,20.51728646,205.67,205.58,20.39179646]
[1738712158698,0.9723,205.68,205.62,20.39179646]
[1738712158875,0.9721,205.72,205.66,20.39179646]
[1738712159080,0.9721,205.72,205.68,20.39179646]
[1738712160086,0.09290007,205.73,205.68,20.39179646]
[1738712160574,1.06500007,205.73,205.68,20.39179646]
[1738712161699,1.06500007,205.73,205.66,20.39179646]
[1738712161902,0.09290007,205.73,205.68,20.39179646]
[1738712162087,0.03,205.72,205.68,20.39179646]
[1738712162281,0.03,205.72,205.66,20.39179646]
[1738712162479,0.15549,205.72,205.66,20.39179646]
[1738712162699,0.37647,205.7,205.64,4.443]
[1738712162898,0.37647,205.68,205.64,4.443]
[1738712163231,20.39179646,205.65,205.64,0.063]
[1738712163389,20.51728646,205.65,205.64,0.063]
[1738712163701,21.48978646,205.65,205.64,0.063]
[1738712163877,36.70161499,205.65,205.55,4.38]
[1738712164073,36.70161499,205.65,205.52,26.40199646]
[1738712164074,20.39179646,205.6,205.52,26.40199646]
[1738712165176,0.9728,205.59,205.52,20.39179646]
[1738712165777,20.76826646,205.58,205.51,137.4]
[1738712165978,20.39179646,205.56,205.51,137.4]
[1738712166206,20.39179646,205.56,205.48,20.39179646]
[1738712166795,20.76826646,205.58,205.5,20.39179646]
[1738712167286,20.76826646,205.58,205.48,20.39179646]
[1738712167287,20.51728646,205.56,205.48,20.39179646]
[1738712168109,20.39179646,205.56,205.48,20.39179646]
[1738712168403,2.633,205.57,205.47,4.38]
[1738712168404,1.6601,205.57,205.52,20.39179646]
[1738712169804,2.633,205.57,205.5,20.39179646]
[1738712170607,2.633,205.57,205.52,20.39179646]
[1738712170608,0.09111636,205.53,205.52,20.39179646]
[1738712173406,1.636e-05,205.53,205.52,245.65749646]
[1738712173611,1.5e-05,205.56,205.55,20.0]
[1738712173909,1.68,205.72,205.55,66.64849292]
[1738712174087,0.12549,205.71,205.57,20.39179646]
[1738712174909,20.39179646,205.62,205.53,137.4]
[1738712175105,1.0,205.64,205.53,137.4]
[1738712175106,21.46636208,205.6,205.53,137.4]
[1738712176215,1.07456562,205.6,205.53,137.4]
[1738712176611,0.10176562,205.6,205.53,142.2654]
[1738712176915,0.10176562,205.6,205.56,20.0]
[1738712177293,0.10176562,205.6,205.57,30.0]
[1738712177613,0.03,205.72,205.61,1.0]
[1738712177812,0.03,205.72,205.71,20.0]
[1738712177994,0.03,205.72,205.71,157.4]
[1738712178387,0.03,205.76,205.71,157.4]
[1738712178388,0.03,205.76,205.75,20.0]
[1738712178721,0.03,205.76,205.75,161.78]
[1738712180485,0.03,205.76,205.75,166.6402]
[1738712181085,0.03,205.76,205.75,161.78]
[1738712181323,0.03,205.76,205.75,141.78]
[1738712181819,0.03,205.76,205.75,4.38]
[1738712181987,0.12549,205.75,205.66,4.38]
[1738712182194,0.12549,205.75,205.67,30.0]
[1738712182394,0.12549,205.75,205.66,4.38]
[1738712182892,0.03,205.76,205.66,4.38]
[1738712183093,0.03,205.76,205.66,146.6423]
[1738712183935,0.03,205.76,205.69,20.0]
[1738712184920,0.03,205.76,205.71,20.0]
[1738712185135,0.03,205.76,205.71,157.4]
[1738712185434,0.03,205.76,205.72,30.0]
[1738712186504,0.03,205.76,205.72,167.4]
[1738712186706,0.03,205.76,205.74,7.62]
[1738712186913,0.0001,205.76,205.75,4.98569]
[1738712187088,0.0001,205.76,205.75,18.77400853]
[1738712187295,0.0001,205.76,205.75,240.17400853]
[1738712187907,0.0001,205.76,205.75,269.17400853]
[1738712188410,0.0001,205.76,205.75,270.17400853]
[1738712188722,0.0001,205.76,205.75,272.11694353]
[1738712188906,0.0001,205.76,205.75,584.11694353]
[1738712190033,7.7827,205.95,205.85,20.0]
[1738712190216,0.971,205.97,205.86,4.38]
[1738712190539,0.10405487,205.87,205.86,4.38]
[1738712190922,0.10405487,205.87,205.86,34.38]
[1738712194834,0.10405487,205.87,205.86,4.38]
[1738712195553,0.10405487,205.87,205.86,9.2376]
[1738712195727,0.10405487,205.87,205.86,146.6376]
[1738712197347,0.10405487,205.87,205.86,176.6376]
[1738712199552,0.13405487,205.87,205.86,176.6376]
[1738712200228,0.13405487,205.87,205.86,176.88858]
[1738712200435,6.285e-05,205.88,205.87,0.50196]
[1738712200633,6.769e-05,205.89,205.88,13.66282853]
[1738712201462,6.769e-05,205.89,205.88,18.51992853]
[1738712201641,6.769e-05,205.89,205.88,48.51992853]
[1738712202030,6.769e-05,205.89,205.88,34.8571]
[1738712202430,6.769e-05,205.89,205.88,30.0]
[1738712203659,6.769e-05,205.89,205.86,137.4]
[1738712203862,6.769e-05,205.89,205.86,142.2576]
[1738712204834,6.769e-05,205.89,205.87,30.0]
[1738712206138,6.769e-05,205.89,205.88,4.8571]
[1738712206341,6.769e-05,205.89,205.88,34.8571]
[1738712207164,6.769e-05,205.89,205.88,36.799477]
[1738712207459,6.769e-05,205.89,205.88,30.0]
[1738712207660,6.769e-05,205.89,205.84,4.36]
[1738712208170,6.769e-05,205.89,205.83,11.161196]
[1738712208343,1.64186769,205.89,205.81,0.063]
[1738712208858,0.37647,205.88,205.81,0.063]
[1738712209032,2.28749046,205.88,205.81,0.063]
[1738712209233,3.4001,205.87,205.81,0.063]
[1738712209665,0.9714,205.87,205.81,0.063]
[1738712210248,1.2875106,205.86,205.81,0.063]
[1738712210536,0.0964097,205.82,205.81,0.063]
[1738712211346,1.0681097,205.82,205.81,0.063]
[1738712213267,0.0964097,205.82,205.81,0.063]
[1738712213457,0.0964097,205.82,205.81,137.463]
[1738712217470,0.0964097,205.82,205.81,167.463]
[1738712218567,0.0964097,205.82,205.81,172.3218]
[1738712219362,0.0964097,205.82,205.81,185.98462853]
[1738712219567,9.7e-06,205.82,205.81,275.61980853]
[1738712220169,3.488e-05,205.83,205.81,275.61980853]
[1738712220369,2.08e-05,205.85,205.84,21.25098]
[1738712220581,5.178e-05,205.86,205.85,4.8579]
[1738712220869,5.178e-05,205.86,205.84,34.36]
[1738712221481,5.178e-05,205.86,205.82,137.4]
[1738712222671,5.178e-05,205.86,205.82,142.2585]
[1738712224075,5.178e-05,205.86,205.85,20.0]
[1738712224263,0.1310599,205.89,205.85,20.0]
[1738712224264,6.807e-05,205.88,205.85,19.50734853]
[1738712224462,6.807e-05,205.88,205.87,20.0]
[1738712224776,6.807e-05,205.88,205.87,162.2574]
[1738712225372,6.807e-05,205.88,205.85,30.0]
[1738712225675,6.807e-05,205.88,205.83,83.0]
[1738712225676,6.807e-05,205.88,205.87,30.0]
[1738712225875,6.807e-05,205.88,205.83,87.8583]
[1738712226071,6.807e-05,205.88,205.82,137.463]
[1738712226275,6.807e-05,205.88,205.82,0.063]
[1738712226276,1.52926807,205.88,205.82,0.063]
[1738712226572,0.9714,205.87,205.82,0.063]
[1738712226772,1.37647,205.86,205.82,0.063]
[1738712227284,2.37647,205.86,205.82,0.063]
[1738712227478,1.37647,205.83,205.82,0.063]
[1738712227781,0.37647,205.82,205.81,0.0001]
[1738712227964,1.0,205.81,205.69,30.0]
[1738712228286,1.0,205.81,205.68,141.76]
[1738712228781,0.9718,205.8,205.68,146.6218]
[1738712230375,13.78831853,205.82,205.68,146.6218]
[1738712230575,0.09613352,205.69,205.68,146.6218]
[1738712231281,0.09613352,205.69,205.66,195.1]
[1738712231460,0.09613352,205.69,205.67,30.0]
[1738712231660,0.09613352,205.69,205.66,195.1]
[1738712231855,0.09613352,205.69,205.66,57.7]
[1738712232255,0.09613352,205.69,205.65,141.76]
[1738712232469,0.09613352,205.69,205.65,146.6225]
[1738712233574,0.09613352,205.69,205.62,9.2863]
[1738712233781,1.06843352,205.69,205.63,30.0]
[1738712234084,0.09613352,205.69,205.63,30.0]
[1738712234489,1.06843352,205.69,205.63,30.0]
[1738712234691,0.09613352,205.69,205.63,30.0]
[1738712235098,0.09613352,205.69,205.62,4.9263]
[1738712235887,0.09613352,205.69,205.66,20.0]
[1738712236185,0.09613352,205.69,205.66,137.4]
[1738712236789,0.09613352,205.69,205.63,30.0]
[1738712236790,1.06843352,205.69,205.63,30.0]
[1738712236968,1.06843352,205.69,205.62,0.063]
[1738712237481,0.09613352,205.69,205.62,4.9263]
[1738712238327,0.09613352,205.69,205.63,0.063]
[1738712238461,0.09613352,205.69,205.63,11.56791696]
[1738712238864,0.09613352,205.69,205.63,0.063]
[1738712239564,0.09613352,205.69,205.64,20.0]
[1738712239770,0.09613352,205.69,205.63,0.063]
[1738712240669,0.09613352,205.69,205.67,20.0]
[1738712240881,0.09613352,205.69,205.67,157.4]
[1738712241196,0.09613352,205.69,205.68,5.7997893]
[1738712241489,0.09613352,205.69,205.68,41.50491696]
[1738712242690,7.756e-05,205.7,205.69,13.53733853]
[1738712242914,4.346e-05,205.72,205.71,20.0]
[1738712243197,4.346e-05,205.72,205.71,171.31380853]
[1738712243365,2.26e-06,205.75,205.73,13.41184853]
[1738712243566,4.242e-05,205.76,205.75,20.0]
[1738712244708,4.242e-05,205.76,205.74,4.36]
[1738712245370,4.242e-05,205.76,205.74,9.2204]
[1738712246183,4.242e-05,205.76,205.74,4.36]
[1738712246895,4.242e-05,205.76,205.7,4.36]
[1738712247897,0.37651242,205.76,205.7,4.36]
[1738712248898,0.972,205.75,205.7,4.36]
[1738712250301,4.242e-05,205.76,205.7,4.36]
[1738712250806,0.09824117,205.71,205.7,9.2214]
[1738712252376,0.09824117,205.71,205.7,39.2214]
[1738712255815,0.09824117,205.71,205.7,34.8614]
[1738712257921,0.09824117,205.71,205.7,30.0]
[1738712259497,0.09824117,205.71,205.65,146.6025]
[1738712259702,0.09824117,205.71,205.65,9.2025]
[1738712261017,0.09824117,205.71,205.68,20.0]
[1738712261224,0.09824117,205.71,205.65,20.14393919]
[1738712262414,0.09824117,205.71,205.68,20.0]
[1738712263089,0.09824117,205.71,205.68,20.063]
[1738712263324,0.09824117,205.71,205.68,0.063]
[1738712263702,0.09824117,205.71,205.68,30.063]
[1738712264114,0.09824117,205.71,205.68,0.063]
[1738712266121,1.07044117,205.71,205.68,0.063]
[1738712266317,0.09824117,205.71,205.68,0.063]
[1738712270619,0.09899702,205.69,205.68,0.063]
[1738712272525,0.09899702,205.69,205.68,4.9249]
[1738712273944,0.09899702,205.69,205.68,0.063]
[1738712277907,1.07129702,205.69,205.68,0.063]
[1738712278214,0.09899702,205.69,205.68,0.063]
[1738712279837,1.07129702,205.69,205.68,0.063]
[1738712280334,2.44776702,205.69,205.68,0.063]
[1738712280524,23.43581555,205.69,205.68,0.063]
[1738712280727,1.0,205.65,205.63,0.063]
[1738712281116,0.37647,205.64,205.63,0.063]
[1738712281316,0.37647,205.64,205.62,0.063]
[1738712281317,1.37647,205.63,205.62,0.063]
[1738712281516,14.78831853,205.63,205.62,0.063]
[1738712281841,15.76091853,205.63,205.62,0.063]
[1738712283625,15.76091853,205.63,205.62,0.0001]
[1738712285644,14.78831853,205.62,205.61,0.0001]
[1738712285811,15.70064219,205.62,205.61,0.0001]
[1738712286338,13.78831853,205.62,205.61,0.0001]
[1738712287343,14.76091853,205.62,205.61,0.0001]
[1738712287643,15.76091853,205.62,205.61,0.0001]
[1738712288640,0.37647,205.56,205.5,0.063]
[1738712290323,13.41184853,205.58,205.5,0.063]
[1738712290525,1.9726,205.62,205.5,0.063]
[1738712290725,0.10164444,205.51,205.5,137.463]
[1738712292447,0.10164444,205.51,205.5,167.463]
[1738712293579,0.10164444,205.51,205.5,172.3291]
[1738712294454,4.444e-05,205.51,205.5,193.77691853]
[1738712294763,2.649e-05,205.53,205.51,13.41184853]
[1738712294962,2.649e-05,205.53,205.51,43.41184853]
[1738712295166,2.649e-05,205.53,205.51,263.81184853]
[1738712295373,3.74e-06,205.55,205.54,20.0]
[1738712295884,3.74e-06,205.55,205.54,54.8652]
[1738712296532,3.74e-06,205.55,205.54,59.2052]
[1738712298048,3.74e-06,205.55,205.54,29.2052]
[1738712299653,3.74e-06,205.55,205.54,59.2052]
[1738712299843,3.74e-06,205.55,205.54,196.6052]
[1738712300623,0.03000374,205.55,205.54,196.6052]
[1738712301360,8.179e-05,205.56,205.55,13.41184853]
[1738712301529,8.179e-05,205.56,205.55,263.81184853]
[1738712302770,8.179e-05,205.56,205.55,268.67674853]
[1738712303976,8.179e-05,205.56,205.55,255.2649]
[1738712304780,9.884e-05,205.57,205.55,269.05321853]
[1738712305067,8.197e-05,205.6,205.59,34.97834853]
[1738712305274,8.197e-05,205.6,205.59,64.97834853]
[1738712306077,8.197e-05,205.6,205.59,65.35481853]
[1738712306253,8.197e-05,205.6,205.59,65.48030853]
[1738712307253,8.197e-05,205.6,205.59,70.21881853]
[1738712307744,8.197e-05,205.6,205.59,69.84234853]
[1738712308677,8.197e-05,205.6,205.59,290.24234853]
[1738712309179,8.197e-05,205.6,205.59,291.44460363]
[1738712309476,8.197e-05,205.6,205.59,304.39355838]
[1738712310673,6.901e-05,205.6,205.59,303.26806838]
[1738712311775,6.901e-05,205.6,205.59,302.89159838]
[1738712312878,0.099103,205.61,205.59,303.39355838]
[1738712313086,5.207e-05,205.62,205.6,19.8047745]
[1738712313274,5.207e-05,205.62,205.6,50.8047745]
[1738712314055,1.508e-05,205.66,205.63,1.37647]
[1738712314362,1.508e-05,205.66,205.65,20.0]
[1738712315072,1.508e-05,205.66,205.65,21.18713732]
[1738712315275,6.93e-06,205.67,205.66,6.415]
[1738712315583,6.93e-06,205.67,205.66,20.82684853]
[1738712315952,6.2252,205.89,205.74,1.0]
[1738712316152,6.2252,205.89,205.79,20.0]
[1738712316153,0.03,205.89,205.79,20.0]
[1738712316360,0.03,205.89,205.83,20.0]
[1738712316775,0.03,205.89,205.83,26.80671152]
[1738712317150,0.03,205.89,205.84,4.8581]
[1738712317365,0.03,205.89,205.87,20.0]
[1738712318959,0.03,205.89,205.88,4.32]
[1738712319284,0.03,205.89,205.88,141.72]
[1738712324776,0.03,205.89,205.88,146.5771]
[1738712325690,0.03,205.89,205.88,142.2571]
[1738712325995,0.03,205.89,205.83,227.20671152]
[1738712326171,0.03,205.89,205.84,30.0]
[1738712327069,0.03,205.89,205.83,229.5783]
[1738712330693,0.10557424,205.84,205.83,229.5783]
[1738712331191,0.10557424,205.84,205.83,250.4]
[1738712332079,0.10557424,205.84,205.83,220.4]
[1738712333997,0.10557424,205.84,205.79,4.8593]
[1738712334804,0.37647,205.82,205.71,137.4]
[1738712335107,13.66282853,205.78,205.7,4.32]
[1738712335296,0.9719,205.77,205.7,4.32]
[1738712335688,0.9719,205.77,205.71,30.0]
[1738712336083,0.9717,205.81,205.7,9.1813]
[1738712336299,0.9717,205.81,205.7,146.5813]
[1738712336609,0.25098,205.8,205.7,146.5813]
[1738712338011,1.22278,205.8,205.7,146.5813]
[1738712338725,1.22278,205.8,205.7,142.2613]
[1738712338911,1.22278,205.8,205.7,146.5813]
[1738712339881,0.25098,205.78,205.7,137.4]
[1738712340085,0.25098,205.78,205.69,4.32]
[1738712340086,0.25098,205.76,205.69,4.32]
[1738712341215,0.25098,205.72,205.63,142.2629]
[1738712341510,0.12549,205.71,205.65,30.0]
[1738712341682,0.25098,205.7,205.65,30.0]
[1738712341877,0.37647,205.67,205.65,30.0]
[1738712342077,0.9723,205.68,205.62,4.383]
[1738712342078,0.37647,205.65,205.62,0.063]
[1738712342687,0.37647,205.63,205.62,0.063]
[1738712342888,13.78831853,205.63,205.62,0.063]
[1738712343599,14.78831853,205.63,205.62,0.063]
[1738712344115,14.76091853,205.63,205.62,0.063]
[1738712344819,15.76091853,205.63,205.62,0.063]
[1738712345513,35.78831853,205.6,205.59,0.063]
[1738712345716,0.37647,205.55,205.51,0.063]
[1738712345934,0.37647,205.53,205.51,0.063]
[1738712348520,13.41184853,205.52,205.51,0.063]
[1738712348832,13.78831853,205.52,205.51,0.063]
[1738712349032,14.78831853,205.51,205.5,0.063]
[1738712349323,16.70111535,205.51,205.5,0.063]
[1738712349526,15.70111535,205.51,205.5,0.063]
[1738712350024,1.0,205.55,205.5,0.063]
[1738712350214,0.91269937,205.62,205.5,0.063]
[1738712350215,8.2647,205.61,205.5,0.063]
[1738712350420,8.2374,205.61,205.51,4.8659]
[1738712350607,0.10439389,205.52,205.51,4.8659]
[1738712350945,0.10439389,205.52,205.51,142.2659]
[1738712351336,0.10439389,205.52,205.51,137.4]
[1738712353129,0.10439389,205.52,205.51,141.72]
[1738712355032,5.236e-05,205.53,205.51,224.72]
[1738712355215,5.927e-05,205.55,205.54,26.67446]
[1738712355413,1.5172,205.69,205.54,26.67446]
[1738712355414,2.108e-05,205.57,205.55,15.06184853]
[1738712355735,2.108e-05,205.57,205.55,139.05]
[1738712357045,2.108e-05,205.57,205.56,4.8647]
[1738712357432,2.108e-05,205.57,205.56,142.2647]
[1738712358044,2.108e-05,205.57,205.56,172.2647]
[1738712358619,7.206e-05,205.58,205.56,172.2647]
[1738712359621,7.206e-05,205.58,205.56,174.210048]
[1738712360137,7.206e-05,205.58,205.56,175.48688957]
[1738712360448,0.03,205.57,205.56,175.48688957]
[1738712361511,0.03,205.57,205.56,172.3277]
[1738712361809,0.03,205.57,205.56,146.6477]
[1738712362253,0.03,205.57,205.56,142.3277]
[1738712362552,0.03,205.57,205.56,137.463]
[1738712362748,0.03,205.57,205.56,0.063]
[1738712366329,14.81831853,205.57,205.56,0.063]
[1738712366538,16.70365678,205.57,205.56,0.063]
[1738712368135,14.79121853,205.57,205.56,0.063]
[1738712368639,13.81831853,205.57,205.56,0.063]
[1738712369431,0.03,205.57,205.56,0.063]
[1738712370636,0.12837716,205.57,205.56,0.063]
[1738712370833,0.12837716,205.57,205.56,137.463]
[1738712372238,0.12837716,205.57,205.56,172.3277]
[1738712374665,1.0,205.75,205.59,20.0]
[1738712374845,1.6406,205.77,205.6,4.3]
[1738712375032,2.556e-05,205.65,205.61,13.91380853]
[1738712375232,2.556e-05,205.65,205.64,41.18364853]
[1738712375434,2.556e-05,205.65,205.64,261.58364853]
[1738712375843,2.556e-05,205.65,205.64,278.1718]
[1738712376036,2.556e-05,205.65,205.64,279.36189255]
[1738712376233,2.556e-05,205.65,205.64,283.0346]
[1738712379070,2.556e-05,205.65,205.64,281.4962]
[1738712379971,2.556e-05,205.65,205.64,265.7962]
[1738712380459,2.556e-05,205.65,205.64,235.7962]
[1738712382360,0.03002556,205.65,205.64,235.7962]
[1738712382762,0.03002556,205.65,205.64,224.7]
[1738712388968,0.03002556,205.65,205.64,4.3]
[1738712390675,0.12471353,205.65,205.64,4.3]
[1738712391276,0.12471353,205.65,205.64,24.3]
[1738712391602,0.12471353,205.65,205.64,249.5628]
[1738712391777,0.12471353,205.65,205.64,251.2016]
[1738712391978,7.4934,205.81,205.68,20.0]
[1738712392185,0.9717,205.83,205.68,240.4]
[1738712392384,13.41184853,205.82,205.68,270.4]
[1738712392583,14.38354853,205.82,205.68,270.4]
[1738712393193,0.9719,205.77,205.68,270.4]
[1738712393506,0.972,205.76,205.68,270.4]
[1738712394503,0.972,205.76,205.68,275.2618]
[1738712394808,0.37647,205.8,205.68,275.2618]
[1738712394987,1.34827,205.8,205.68,245.2618]
[1738712395188,0.1239498,205.73,205.68,245.2618]
[1738712395585,0.1239498,205.73,205.69,1.944281]
[1738712396506,0.1239498,205.73,205.7,4.8614]
[1738712396987,0.1239498,205.73,205.7,34.8614]
[1738712397602,0.1239498,205.73,205.7,30.0]
[1738712397791,0.1239498,205.73,205.7,137.4]
[1738712398479,1.0960498,205.73,205.7,137.4]
[1738712398880,0.37647,205.72,205.66,137.4]
[1738712400704,1.34867,205.72,205.66,137.4]
[1738712402810,0.37647,205.7,205.65,137.4]
[1738712403113,0.37647,205.66,205.64,0.063]
[1738712403806,13.78831853,205.65,205.64,0.063]
[1738712404308,14.76081853,205.65,205.64,0.063]
[1738712404518,15.76081853,205.65,205.64,0.063]
[1738712405110,14.76081853,205.65,205.64,0.063]
[1738712406107,14.76101853,205.61,205.56,137.463]
[1738712406307,0.37647,205.58,205.56,0.063]
[1738712406702,13.78831853,205.57,205.56,0.063]
[1738712408022,14.76121853,205.57,205.56,0.063]
[1738712408531,15.76121853,205.57,205.56,0.063]
[1738712409319,14.76121853,205.57,205.56,0.063]
[1738712409609,2.4317,205.61,205.56,0.063]
[1738712409610,0.9727,205.61,205.56,0.063]
[1738712410616,0.09981471,205.57,205.56,137.463]
[1738712410788,0.09981471,205.57,205.56,220.463]
[1738712414933,0.09981471,205.57,205.56,225.3277]
[1738712416229,0.09981471,205.57,205.56,220.463]
[1738712421076,1.44918471,205.57,205.56,0.063]
[1738712421335,15.86103324,205.57,205.56,0.063]
[1738712423240,14.86103324,205.57,205.56,0.063]
[1738712423949,0.09981471,205.57,205.56,137.463]
[1738712424303,0.09981471,205.57,205.56,142.3277]
[1738712426336,0.09981471,205.57,205.56,137.463]
[1738712427507,0.09981471,205.57,205.56,142.3277]
[1738712429238,1.471e-05,205.57,205.56,268.73954853]
[1738712430119,1.471e-05,205.57,205.56,255.3277]
[1738712430325,1.471e-05,205.57,205.56,268.73954853]
[1738712430719,0.0949391,205.57,205.56,268.73954853]
[1738712432341,0.09492439,205.57,205.56,268.73954853]
[1738712432725,0.09492439,205.57,205.56,269.73954853]
[1738712432933,0.09492439,205.57,205.56,268.73954853]
[1738712436554,0.09492439,205.57,205.56,255.3277]
[1738712436856,0.09492439,205.57,205.56,259.6077]
[1738712438954,2.439e-05,205.57,205.56,259.6077]
[1738712439158,2.439e-05,205.57,205.56,260.6077]
[1738712439360,0.03,205.72,205.59,20.0]
[1738712439660,0.03,205.72,205.63,20.0]
[1738712440430,0.03,205.72,205.67,20.0]
[1738712440741,0.03,205.72,205.67,240.4]
[1738712440939,0.03,205.72,205.67,270.4]
[1738712441152,0.03,205.72,205.68,4.8619]
[1738712441356,0.03,205.72,205.69,4.28]
[1738712445476,0.03,205.72,205.69,141.68]
[1738712446548,0.03,205.72,205.71,20.0]
[1738712448261,0.03,205.72,205.71,24.8612]
[1738712448666,0.03,205.72,205.71,275.2612]
[1738712448873,0.03,205.78,205.71,275.2612]
[1738712448874,0.03,205.78,205.71,288.4142]
[1738712449198,0.03,205.78,205.71,287.4142]
[1738712449696,0.03,205.78,205.71,288.60331326]
[1738712450395,0.03,205.78,205.71,287.4142]
[1738712450895,0.08755611,205.72,205.71,300.82604853]
[1738712451093,2.461e-05,205.73,205.72,13.41184853]
[1738712451297,2.461e-05,205.73,205.72,43.41184853]
[1738712451876,0.03,205.86,205.75,20.0]
[1738712452099,0.03,205.86,205.79,20.0]
[1738712452415,0.03,205.86,205.82,20.0]
[1738712452694,0.03,205.86,205.83,4.28]
[1738712453098,0.03,205.86,205.83,5.47234602]
[1738712453392,0.03,205.86,205.84,13.91380853]
[1738712453593,0.03,205.86,205.84,137.4]
[1738712456778,0.03,205.86,205.84,141.66]
[1738712457179,0.03,205.86,205.84,224.66]
[1738712459795,0.03,205.86,205.84,229.5181]
[1738712460514,0.03,205.86,205.84,259.5181]
[1738712462523,0.03,205.86,205.84,273.43190853]
[1738712462686,0.03,205.86,205.85,13.41184853]
[1738712462893,0.03,205.86,205.85,13.91380853]
[1738712463086,0.03,205.86,205.85,234.31380853]
[1738712464618,0.03,205.86,205.85,264.31380853]
[1738712464986,0.0001,205.86,205.85,283.76170853]
[1738712465191,0.03,205.93,205.89,13.41184853]
[1738712465418,0.03,205.93,205.89,233.81184853]
[1738712465621,0.03,205.93,205.89,263.81184853]
[1738712465820,0.03,205.93,205.89,250.4]
[1738712466000,0.03,205.93,205.89,254.66]
[1738712466504,0.03,205.93,205.89,224.66]
[1738712470818,0.0930905,205.9,205.89,224.66]
[1738712472953,0.0930905,205.9,205.86,137.4]
[1738712473124,0.0930905,205.9,205.87,30.0]
[1738712473549,0.0930905,205.9,205.86,137.4]
[1738712474351,1.0643905,205.9,205.86,137.4]
[1738712475742,1.0643905,205.9,205.84,0.063]
[1738712475743,0.37647,205.87,205.84,0.063]
[1738712477250,0.37647,205.87,205.74,6.0464909]
[1738712477251,17.20751853,205.75,205.74,1.1860909]
[1738712477459,3.4192,205.8,205.74,1.1860909]
[1738712477755,13.78831853,205.77,205.66,137.463]
[1738712478276,20.0,205.79,205.66,142.3253]
[1738712478635,20.37647,205.78,205.66,142.3253]
[1738712479167,21.34837,205.78,205.66,142.3253]
[1738712479775,0.9716,205.85,205.7,20.50196]
[1738712480075,0.9716,205.85,205.74,20.0]
[1738712480254,0.9716,205.85,205.74,157.4]
[1738712480454,0.25098,205.85,205.74,157.4]
[1738712480985,0.12549,205.82,205.74,137.4]
[1738712482165,0.9717,205.81,205.74,137.4]
[1738712483065,33.41184853,205.85,205.74,137.4]
[1738712483264,20.0,205.85,205.74,137.4]
[1738712483474,0.37647,205.83,205.74,220.4]
[1738712484174,0.9717,205.82,205.74,220.4]
[1738712484678,0.9716,205.84,205.74,225.2604]